bitfinex/quotes_BTCUSD_20260117
["timestamp","ask_amount","ask_price","bid_price","bid_amount"]
[1768662838212,0.01047537,95462.0,95459.0,0.0104757]
[1768662839699,0.01047515,95464.0,95459.0,0.0104757]
[1768662839838,0.01008724,95464.0,95460.0,0.01047559]
[1768662840037,0.00969933,95464.0,95460.0,0.01047559]
[1768662840930,0.01047504,95465.0,95461.0,0.01047548]
[1768662842210,0.01047504,95465.0,95457.0,0.01063462]
[1768662842397,0.01047548,95461.0,95457.0,0.01063462]
[1768662842596,0.01047526,95463.0,95459.0,0.0104757]
[1768662842800,0.01047526,95463.0,95457.0,0.01063462]
[1768662842801,1.10770501,95463.0,95457.0,0.01063462]
[1768662843223,0.01047515,95464.0,95458.0,0.01047581]
[1768662843427,0.01047537,95462.0,95458.0,0.01047581]
[1768662843623,0.01047537,95462.0,95459.0,0.0104757]
[1768662843827,0.01047548,95461.0,95457.0,0.01063462]
[1768662844006,0.06285238,95462.0,95457.0,0.01063462]
[1768662844007,0.01047537,95462.0,95458.0,0.01047581]
[1768662844188,0.01018527,95461.0,95457.0,0.01063462]
[1768662844804,0.01018527,95461.0,95458.0,0.01047581]
[1768662844805,0.00979729,95461.0,95458.0,0.01047581]
[1768662845189,0.01047559,95460.0,95457.0,0.01063462]
[1768662845620,0.01047559,95460.0,95456.0,0.01067603]
[1768662845787,0.00979729,95461.0,95457.0,0.01047592]
[1768662846612,0.00979729,95461.0,95457.0,0.00890554]
[1768662847057,0.0104757,95459.0,95456.0,0.00028416]
[1768662847228,0.0104757,95459.0,95456.0,0.01076019]
[1768662847445,0.0094093,95461.0,95456.0,0.01076019]
[1768662847607,0.00902131,95461.0,95457.0,0.01047592]
[1768662848068,0.02262005,95460.0,95457.0,0.01047592]
[1768662848275,0.02223205,95459.0,95457.0,0.01047592]
[1768662848446,0.00902131,95461.0,95457.0,0.01047592]
[1768662850848,0.01047537,95462.0,95457.0,0.01047592]
[1768662851596,0.06285265,95462.0,95457.0,0.01047592]
[1768662851721,0.01047559,95460.0,95457.0,0.01047592]
[1768662853625,0.0104757,95459.0,95456.0,0.00028416]
[1768662853829,0.01047559,95460.0,95456.0,0.01076019]
[1768662855355,0.0100877,95459.0,95456.0,0.00028416]
[1768662856257,0.06285697,95455.0,95452.0,0.00022011]
[1768662856415,0.0628538,95460.0,95454.0,0.05238125]
[1768662856757,0.0104757,95459.0,95455.0,0.01047614]
[1768662857114,0.0628538,95460.0,95455.0,0.01047614]
[1768662857115,0.01047559,95460.0,95456.0,0.01047603]
[1768662857337,0.01047537,95462.0,95457.0,0.06285541]
[1768662857550,0.01047537,95462.0,95456.0,0.01047603]
[1768662857885,0.01052976,95462.0,95456.0,0.01047603]
[1768662858034,0.01047548,95461.0,95457.0,0.01047592]
[1768662858247,0.01047559,95460.0,95457.0,0.01047592]
[1768662858445,0.0104757,95459.0,95455.0,0.01047614]
[1768662858670,0.01047559,95460.0,95456.0,0.01047603]
[1768662859429,0.00733436,95460.0,95456.0,0.01047603]
[1768662860072,0.00733436,95460.0,95457.0,0.01047592]
[1768662860318,0.00733436,95460.0,95456.0,0.01047603]
[1768662860319,0.02262282,95459.0,95456.0,0.01047603]
[1768662860465,0.02262282,95458.0,95456.0,0.01047603]
[1768662860666,0.02262282,95457.0,95454.0,0.01047625]
[1768662860851,0.02262282,95456.0,95454.0,0.01047625]
[1768662861052,0.02262282,95455.0,95454.0,0.01047625]
[1768662861748,0.02257765,95455.0,95454.0,0.06285735]
[1768662862107,0.02257765,95455.0,95454.0,0.01047625]
[1768662862512,0.02257765,95455.0,95454.0,0.0628575]
[1768662862862,0.02257765,95455.0,95454.0,0.01047625]
[1768662863291,0.02257765,95455.0,95454.0,0.0628575]
[1768662864248,0.02257765,95455.0,95454.0,0.0828575]
[1768662865614,0.02257765,95455.0,95454.0,0.03047625]
[1768662867640,0.01627299,95455.0,95454.0,0.03047625]
[1768662867837,0.01627299,95455.0,95454.0,0.02]
[1768662871697,0.06865369,95455.0,95454.0,0.02]
[1768662871898,0.06865369,95455.0,95452.0,0.00022011]
[1768662871899,0.07912983,95455.0,95452.0,0.00022011]
[1768662872119,0.05238137,95454.0,95452.0,0.00022011]
[1768662875388,0.0523818,95453.0,95452.0,0.00022011]
[1768662875629,0.05238137,95454.0,95452.0,0.00022011]
[1768662875830,0.0523818,95453.0,95452.0,0.00022011]
[1768662876001,0.01047657,95451.0,95448.0,0.0001587]
[1768662876224,0.06281454,95451.0,95448.0,0.0001587]
[1768662876603,0.01043139,95451.0,95448.0,0.0001587]
[1768662877994,0.01043139,95451.0,95447.0,0.01047701]
[1768662878446,0.06281434,95451.0,95447.0,0.01047701]
[1768662879691,0.02261057,95450.0,95448.0,0.0104769]
[1768662879812,0.02261057,95449.0,95448.0,0.0104769]
[1768662880234,0.02261057,95449.0,95444.0,9e-05]
[1768662880448,0.02261057,95448.0,95444.0,9e-05]
[1768662880649,0.02261057,95447.0,95446.0,0.05238564]
[1768662880933,0.02261057,95447.0,95444.0,0.05247626]
[1768662881134,0.01047668,95450.0,95446.0,0.01047712]
[1768662881321,0.02260897,95449.0,95446.0,0.01047712]
[1768662881547,0.02260897,95448.0,95446.0,0.01047712]
[1768662881758,0.02260896,95447.0,95446.0,0.01047712]
[1768662882190,0.02260896,95447.0,95446.0,0.06286276]
[1768662882392,0.02260896,95447.0,95445.0,0.01047723]
[1768662882548,0.01047668,95450.0,95446.0,0.01047712]
[1768662882750,0.02260796,95449.0,95446.0,0.06286269]
[1768662882974,0.02260796,95448.0,95446.0,0.06286269]
[1768662883179,0.02260796,95447.0,95446.0,0.06286269]
[1768662883342,0.02260796,95447.0,95446.0,0.01047712]
[1768662883543,0.02260796,95447.0,95446.0,0.06286276]
[1768662884771,0.02260796,95447.0,95446.0,0.01047712]
[1768662884981,0.02260796,95447.0,95446.0,0.06286276]
[1768662885596,0.02260796,95447.0,95446.0,0.01047712]
[1768662887015,0.02256277,95447.0,95446.0,0.01047712]
[1768662887416,0.02256277,95447.0,95444.0,0.01056734]
[1768662887654,0.01047679,95449.0,95445.0,0.01047723]
[1768662888331,0.01047679,95449.0,95446.0,0.01047712]
[1768662888549,0.0104769,95448.0,95445.0,0.01047723]
[1768662889544,0.01043171,95448.0,95445.0,0.01047723]
[1768662890718,0.01047668,95450.0,95445.0,0.01047723]
[1768662890931,0.01047679,95449.0,95445.0,0.01047723]
[1768662891188,0.0104769,95448.0,95444.0,0.01056734]
[1768662891562,0.0104769,95448.0,95445.0,0.01047723]
[1768662891724,0.01043171,95448.0,95445.0,0.01047723]
[1768662891929,0.01047679,95449.0,95445.0,0.01047723]
[1768662892313,0.0104769,95448.0,95444.0,9e-05]
[1768662892514,0.01047701,95447.0,95444.0,0.01056734]
[1768662892711,0.01047679,95449.0,95445.0,0.01047723]
[1768662894385,1.21496076,95450.0,95446.0,0.01047712]
[1768662894597,1.26734423,95450.0,95446.0,0.01047712]
[1768662894931,1.21496076,95450.0,95446.0,0.01047712]
[1768662895142,0.01047592,95457.0,95450.0,0.01047668]
[1768662895325,0.0104757,95459.0,95455.0,0.01047614]
[1768662895486,0.0104757,95459.0,95455.0,0.05238054]
[1768662895691,0.43587437,95460.0,95455.0,0.01047614]
[1768662895901,1.19690565,95462.0,95455.0,0.01047614]
[1768662896178,5.439e-05,95462.0,95459.0,0.0104757]
[1768662896336,5.439e-05,95462.0,95458.0,0.01047581]
[1768662896506,5.439e-05,95462.0,95459.0,0.06285367]
[1768662896934,5.439e-05,95462.0,95459.0,0.0104757]
[1768662897288,1e-08,95468.0,95465.0,0.01047504]
[1768662897504,0.01047416,95473.0,95467.0,0.05237359]
[1768662897724,0.01047394,95475.0,95468.0,0.01047471]
[1768662897963,0.01047416,95473.0,95469.0,0.05237253]
[1768662898183,0.01047405,95474.0,95468.0,0.06284825]
[1768662898464,0.01047405,95474.0,95468.0,0.01047471]
[1768662898690,0.01047427,95472.0,95468.0,0.01047471]
[1768662899151,0.01047471,95468.0,95460.0,1.34938783]
[1768662899398,0.01047504,95465.0,95460.0,0.01047559]
[1768662899609,0.02260094,95470.0,95467.0,0.01047482]
[1768662900068,0.03307543,95470.0,95466.0,0.01047493]
[1768662900506,0.02260094,95470.0,95467.0,0.01047482]
[1768662900729,0.02260094,95470.0,95466.0,0.01047493]
[1768662900992,0.0104746,95469.0,95466.0,0.01047493]
[1768662901212,0.02260094,95470.0,95467.0,0.01047482]
[1768662901432,0.0001587,95471.0,95468.0,0.01047471]
[1768662902092,0.01212667,95472.0,95469.0,0.0104746]
[1768662902306,0.01047405,95474.0,95470.0,0.01047449]
[1768662902522,0.01047416,95473.0,95470.0,0.01047449]
[1768662902775,0.01047416,95473.0,95469.0,0.0104746]
[1768662902776,0.01053343,95474.0,95471.0,0.01047438]
[1768662902984,0.0001587,95481.0,95478.0,0.01047361]
[1768662903196,0.0001587,95481.0,95479.0,0.05236703]
[1768662903409,0.0001587,95481.0,95478.0,0.01047361]
[1768662903620,0.0001587,95481.0,95478.0,0.0628416]
[1768662903839,0.0001587,95481.0,95478.0,0.01047361]
[1768662904051,0.01063198,95481.0,95475.0,0.01047394]
[1768662904260,0.01063198,95481.0,95477.0,0.01047372]
[1768662904689,0.01063198,95481.0,95475.0,0.01047394]
[1768662904690,0.01047339,95480.0,95475.0,0.01047394]
[1768662905139,0.0001587,95481.0,95478.0,0.01047361]
[1768662906284,0.01063198,95481.0,95478.0,0.01047361]
[1768662906505,0.01063198,95481.0,95478.0,0.13739361]
[1768662906718,0.0001587,95481.0,95478.0,0.13739361]
[1768662906944,0.0001587,95481.0,95459.0,1.29701007]
[1768662907163,1.25247667,95473.0,95469.0,0.0104746]
[1768662907602,0.01047416,95473.0,95469.0,0.0104746]
[1768662908230,0.01047427,95472.0,95469.0,0.0104746]
[1768662908737,0.0628463,95471.0,95466.0,0.01047493]
[1768662909216,0.01047449,95470.0,95467.0,0.01047482]
[1768662909664,0.01047449,95470.0,95466.0,0.01047493]
[1768662910143,0.0104746,95469.0,95461.0,0.01047548]
[1768662910356,0.01047482,95467.0,95463.0,0.01047526]
[1768662910575,0.01047482,95467.0,95464.0,0.12692]
[1768662912240,0.01047482,95467.0,95463.0,0.01047526]
[1768662912432,0.05237466,95466.0,95465.0,0.12692]
[1768662912634,0.06284905,95467.0,95465.0,0.12692]
[1768662912834,0.01047482,95467.0,95465.0,0.12692]
[1768662913053,0.01047482,95467.0,95463.0,0.01047526]
[1768662913259,0.01047504,95465.0,95464.0,0.12692]
[1768662913460,0.01042985,95465.0,95464.0,0.12692]
[1768662913676,0.01047482,95467.0,95464.0,0.12692]
[1768662914240,0.01047482,95467.0,95464.0,0.01047515]
[1768662914437,0.01047482,95467.0,95465.0,0.12692]
[1768662914641,0.01047493,95466.0,95462.0,0.06285218]
[1768662914880,0.01047482,95467.0,95464.0,0.01047515]
[1768662915076,0.0104746,95469.0,95465.0,0.01047504]
[1768662915281,0.01047471,95468.0,95465.0,0.01047504]
[1768662915657,0.0001587,95481.0,95469.0,0.0104746]
[1768662915855,0.01047372,95477.0,95474.0,0.01047405]
[1768662916063,0.01047339,95480.0,95476.0,0.01047383]
[1768662916296,0.01047339,95480.0,95477.0,0.01047372]
[1768662916504,0.0104735,95479.0,95475.0,0.01047394]
[1768662916895,0.06284104,95479.0,95475.0,0.01047394]
[1768662917156,0.0001587,95481.0,95478.0,0.01047361]
[1768662917299,0.06299844,95481.0,95477.0,0.01047372]
[1768662917706,0.06283843,95483.0,95479.0,0.0104735]
[1768662918073,0.01047306,95483.0,95479.0,0.0104735]
[1768662918211,0.00433723,95483.0,95480.0,0.01047339]
[1768662918415,0.01047317,95482.0,95479.0,0.0104735]
[1768662918615,0.0001587,95490.0,95487.0,0.01047262]
[1768662918912,0.01047153,95497.0,95491.0,0.05236048]
[1768662919113,0.01047131,95499.0,95489.0,0.01047241]
[1768662919114,0.01047142,95498.0,95494.0,0.01047186]
[1768662919515,0.0001587,95500.0,95494.0,0.00866895]
[1768662919723,0.01047142,95498.0,95492.0,0.01047208]
[1768662919934,0.01047153,95497.0,95492.0,0.01047208]
[1768662920151,0.06290341,95497.0,95492.0,0.01047208]
[1768662920301,7.422e-05,95497.0,95494.0,0.01047186]
[1768662921148,0.01047164,95496.0,95492.0,0.01047208]
[1768662921459,0.01047164,95496.0,95493.0,0.01047197]
[1768662921860,0.01047164,95496.0,95492.0,0.01047208]
[1768662922417,0.01047186,95494.0,95491.0,0.12692]
[1768662922633,0.06283142,95494.0,95491.0,0.12692]
[1768662923037,0.01047186,95494.0,95491.0,0.12692]
[1768662923270,0.01047175,95495.0,95491.0,0.13739219]
[1768662923867,0.01047186,95494.0,95491.0,0.13739219]
[1768662925945,0.01047186,95494.0,95491.0,0.12692]
[1768662926096,0.01047175,95495.0,95491.0,0.12692]
[1768662926297,0.01047186,95494.0,95491.0,0.13739219]
[1768662926549,0.01047186,95494.0,95491.0,0.12692]
[1768662926913,0.01047175,95495.0,95491.0,0.13739219]
[1768662927100,0.01047175,95495.0,95492.0,0.01047208]
[1768662927304,0.01047164,95496.0,95492.0,0.06283242]
[1768662927811,0.01054575,95497.0,95493.0,0.01047197]
[1768662929891,0.06290347,95497.0,95492.0,0.01047208]
[1768662930153,0.01047164,95496.0,95492.0,0.01047208]
[1768662930572,0.01047186,95494.0,95491.0,0.12692]
[1768662931087,0.06282991,95496.0,95491.0,0.18975306]
[1768662932101,0.06282991,95496.0,95491.0,0.13739219]
[1768662932748,0.01047175,95495.0,95491.0,0.13739219]
[1768662933195,0.06283063,95495.0,95491.0,0.13739219]
[1768662933425,0.01047164,95496.0,95492.0,0.01047208]
[1768662934197,0.01047175,95495.0,95492.0,0.01047208]
[1768662934400,0.01047164,95496.0,95492.0,0.01047208]
[1768662934600,0.01047164,95496.0,95493.0,0.01047197]
[1768662934803,7.422e-05,95497.0,95493.0,0.01047197]
[1768662935766,7.422e-05,95497.0,95494.0,0.05235928]
[1768662935944,7.422e-05,95497.0,95495.0,0.05235869]
[1768662936309,7.422e-05,95497.0,95494.0,0.06283107]
[1768662936718,0.0001254,95498.0,95495.0,0.06283045]
[1768662936922,0.0001254,95498.0,95495.0,0.01047175]
[1768662937128,0.01059682,95498.0,95494.0,0.01047186]
[1768662938226,0.01055163,95498.0,95494.0,0.01047186]
[1768662938428,0.01047098,95502.0,95498.0,0.01047142]
[1768662938958,0.01047098,95502.0,95498.0,0.06282842]
[1768662939133,0.01047109,95501.0,95498.0,0.01047142]
[1768662939291,0.06282668,95501.0,95495.0,0.06283]
[1768662939487,0.01047087,95503.0,95498.0,0.01047142]
[1768662939713,0.01047109,95501.0,95498.0,0.01047142]
[1768662940819,0.06282661,95501.0,95497.0,0.01047153]
[1768662942493,0.06282661,95501.0,95496.0,0.06282979]
[1768662942494,0.06282788,95499.0,95495.0,0.01047175]
[1768662942695,0.06282788,95499.0,95492.0,0.01047208]
[1768662942696,0.06282854,95498.0,95493.0,0.06283169]
[1768662942892,0.01047142,95498.0,95495.0,0.01047175]
[1768662943099,0.01047131,95499.0,95496.0,0.01047164]
[1768662943824,0.01047142,95498.0,95495.0,0.01047175]
[1768662944021,0.01047142,95498.0,95494.0,0.01047186]
[1768662944022,0.01047153,95497.0,95494.0,0.01047186]
[1768662944221,0.01047142,95498.0,95495.0,0.01047175]
[1768662944628,0.03303256,95499.0,95495.0,0.01047175]
[1768662944823,0.02256125,95499.0,95495.0,0.01047175]
[1768662945027,0.02256125,95499.0,95495.0,0.06283048]
[1768662945250,0.01047109,95501.0,95497.0,0.06282908]
[1768662945451,0.01047087,95503.0,95499.0,0.01047131]
[1768662945651,0.01047087,95503.0,95498.0,0.06282851]
[1768662945858,0.06282528,95503.0,95498.0,0.06282851]
[1768662946016,0.01047098,95502.0,95499.0,0.01047131]
[1768662946420,0.01047109,95501.0,95498.0,0.01047142]
[1768662946623,0.01047087,95503.0,95499.0,0.06282786]
[1768662947674,0.01047087,95503.0,95499.0,0.01047131]
[1768662947914,0.01047098,95502.0,95499.0,0.01047131]
[1768662948112,0.01047098,95502.0,95498.0,0.01047142]
[1768662948662,0.06282604,95502.0,95498.0,0.01047142]
[1768662948862,0.01047098,95502.0,95498.0,0.01047142]
[1768662949425,0.01047076,95504.0,95498.0,0.01047142]
[1768662949764,0.01047076,95504.0,95498.0,0.13739142]
[1768662950185,0.05235481,95503.0,95498.0,0.13739142]
[1768662950765,0.05235437,95503.0,95498.0,0.13739142]
[1768662951086,0.05235526,95502.0,95498.0,0.13739142]
[1768662951252,0.06282624,95502.0,95498.0,0.13739142]
[1768662951602,0.01047098,95502.0,95498.0,0.13739142]
[1768662951831,0.01047109,95501.0,95498.0,0.12692]
[1768662952190,0.06282551,95503.0,95498.0,0.12692]
[1768662952191,0.00039901,95509.0,95499.0,1.17857634]
[1768662952356,0.05235182,95508.0,95502.0,0.0523544]
[1768662952557,0.05235182,95508.0,95501.0,0.06282557]
[1768662952782,0.05235182,95508.0,95502.0,0.05235448]
[1768662953278,0.01047032,95508.0,95504.0,0.01047076]
[1768662953474,0.00039901,95509.0,95502.0,0.01047098]
[1768662953660,0.00039901,95509.0,95508.0,0.05235163]
[1768662953863,0.00039901,95509.0,95507.0,0.05235215]
[1768662954318,0.0001791,95519.0,95515.0,0.01046955]
[1768662954492,0.0001791,95519.0,95488.0,0.31417288]
[1768662954493,0.01046923,95518.0,95514.0,0.01046966]
[1768662954700,0.01046934,95517.0,95513.0,0.01046977]
[1768662955093,0.01046934,95517.0,95512.0,0.01046988]
[1768662955094,0.01046955,95515.0,95512.0,0.01046988]
[1768662955441,0.06281616,95517.0,95512.0,0.01046988]
[1768662955616,0.01046934,95517.0,95512.0,0.06281898]
[1768662956016,0.01046945,95516.0,95513.0,0.01046977]
[1768662956400,0.01046945,95516.0,95511.0,0.01046999]
[1768662956401,0.01046955,95515.0,95511.0,0.01046999]
[1768662956640,0.01046955,95515.0,95512.0,0.01046988]
[1768662956785,0.01046945,95516.0,95512.0,0.01046988]
[1768662956986,0.01046945,95516.0,95513.0,0.01046977]
[1768662957206,0.01046945,95516.0,95510.0,1.17857634]
[1768662957387,0.01046977,95513.0,95510.0,1.18904644]
[1768662957588,0.01046955,95515.0,95511.0,0.01046999]
[1768662957977,0.01046955,95515.0,95511.0,0.06281997]
[1768662958132,0.01046955,95515.0,95511.0,0.01046999]
[1768662958816,0.01046977,95513.0,95510.0,1.18904644]
[1768662959033,0.06281893,95513.0,95510.0,1.17857634]
[1768662959236,0.01046977,95513.0,95510.0,1.17857634]
[1768662959436,0.01046977,95513.0,95509.0,0.01047021]
[1768662960687,0.01046966,95514.0,95509.0,0.01047021]
[1768662960888,0.01046955,95515.0,95511.0,0.01046999]
[1768662961239,0.01046945,95516.0,95512.0,0.01046988]
[1768662961684,0.01046966,95514.0,95510.0,0.0104701]
[1768662961884,0.01046977,95513.0,95509.0,0.01047021]
[1768662962063,0.01046977,95513.0,95510.0,0.0104701]
[1768662962463,0.01046988,95512.0,95509.0,0.01047021]
[1768662963573,0.01046945,95516.0,95511.0,0.01046999]
[1768662963770,0.06281676,95516.0,95511.0,0.01046999]
[1768662964382,0.06281676,95516.0,95510.0,0.0104701]
[1768662964578,0.01046955,95515.0,95510.0,0.0104701]
[1768662964787,0.01046977,95513.0,95510.0,0.0104701]
[1768662965335,0.06281809,95514.0,95510.0,0.0104701]
[1768662965542,0.06281809,95514.0,95509.0,0.01047021]
[1768662965543,0.01046977,95513.0,95509.0,0.01047021]
[1768662966285,0.01046977,95513.0,95510.0,0.0104701]
[1768662966483,0.01046977,95513.0,95509.0,0.01047021]
[1768662967837,0.01046988,95512.0,95509.0,0.01047021]
[1768662968126,0.01047032,95508.0,95504.0,0.01047076]
[1768662968341,0.01047032,95508.0,95504.0,1.1890471]
[1768662968499,0.01047032,95508.0,95505.0,0.01047065]
[1768662969439,0.01046923,95518.0,95510.0,0.0104701]
[1768662969739,1.35166262,95522.0,95505.0,0.01047065]
[1768662969740,0.01046977,95513.0,95505.0,0.01047065]
[1768662969885,0.01046977,95513.0,95507.0,0.01047043]
[1768662970085,0.06281877,95513.0,95508.0,0.01047032]
[1768662970342,0.01046977,95513.0,95509.0,0.01047021]
[1768662971385,0.01046977,95513.0,95507.0,0.01047043]
[1768662971535,0.01046999,95511.0,95508.0,0.01047032]
[1768662972489,0.06281877,95513.0,95508.0,0.06282185]
[1768662972622,0.01046977,95513.0,95509.0,0.01047021]
[1768662972837,0.01046988,95512.0,95508.0,0.01047032]
[1768662973047,0.01046999,95511.0,95508.0,0.01047032]
[1768662973430,0.01046999,95511.0,95507.0,0.01047043]
[1768662973855,0.01046999,95511.0,95508.0,0.01047032]
[1768662974277,0.01046988,95512.0,95508.0,0.01047032]
[1768662974477,0.01046988,95512.0,95509.0,0.01047021]
[1768662975279,0.01046966,95514.0,95510.0,0.06282058]
[1768662975843,0.01046966,95514.0,95509.0,0.01047021]
[1768662975844,0.0628187,95513.0,95509.0,0.01047021]
[1768662976047,0.01046977,95513.0,95510.0,0.0104701]
[1768662977525,0.01046966,95514.0,95510.0,0.06282056]
[1768662977718,0.01046966,95514.0,95510.0,0.0104701]
[1768662977999,0.01046945,95516.0,95511.0,0.01046999]
[1768662978384,0.01046988,95512.0,95508.0,0.01047032]
[1768662978762,0.01046988,95512.0,95508.0,0.06282191]
[1768662980151,0.01046988,95512.0,95509.0,0.01047021]
[1768662980326,0.01046977,95513.0,95509.0,0.06282127]
[1768662980528,0.01046977,95513.0,95510.0,0.0104701]
[1768662981077,0.01046999,95511.0,95507.0,0.01047043]
[1768662981486,0.01046999,95511.0,95507.0,0.06282245]
[1768662982264,0.01046999,95511.0,95508.0,0.01047032]
[1768662982550,0.01046988,95512.0,95508.0,0.06282191]
[1768662983253,0.03304561,95513.0,95509.0,0.01047021]
[1768662983400,0.02257584,95512.0,95509.0,0.01047021]
[1768662983601,0.02257584,95511.0,95509.0,0.01047021]
[1768662983803,0.02257584,95512.0,95509.0,0.06273089]
[1768662984055,0.02257584,95512.0,95510.0,0.0523505]
[1768662984236,0.03304539,95515.0,95511.0,0.06281998]
[1768662984565,0.02257584,95514.0,95512.0,0.01046988]
[1768662984763,0.02257584,95513.0,95512.0,0.01046988]
[1768662984964,0.01046945,95516.0,95512.0,0.01046988]
[1768662985711,0.01046945,95516.0,95512.0,0.06281927]
[1768662986135,0.01046945,95516.0,95511.0,0.06281997]
[1768662986559,0.0628168,95516.0,95512.0,0.01046988]
[1768662987339,0.01046945,95516.0,95512.0,0.01046988]
[1768662987899,0.01046923,95518.0,95513.0,0.01046977]
[1768662988041,0.01046923,95518.0,95513.0,0.01037939]
[1768662988858,0.06281552,95518.0,95513.0,0.06272826]
[1768662989730,0.01046923,95518.0,95514.0,0.0628179]
[1768662990410,0.01046901,95520.0,95515.0,0.01046955]
[1768662990739,0.01046901,95520.0,95517.0,0.01046934]
[1768662990876,0.06281516,95519.0,95514.0,0.01046966]
[1768662991784,0.02823321,95528.0,95522.0,0.01046879]
[1768662991983,0.12688,95525.0,95523.0,0.01037831]
[1768662992207,0.12688,95525.0,95523.0,0.0627216]
[1768662992616,0.01060984,95528.0,95520.0,0.01046901]
[1768662992617,0.01046835,95526.0,95520.0,0.01046901]
[1768662992752,0.12688,95525.0,95524.0,0.01046857]
[1768662992952,0.12688,95525.0,95523.0,0.01046868]
[1768662993205,0.12688,95525.0,95523.0,0.06281208]
[1768662993404,0.01046824,95527.0,95524.0,0.01046857]
[1768662993605,0.12688,95526.0,95524.0,0.01046857]
[1768662993810,0.01046824,95527.0,95523.0,0.01046868]
[1768662994106,0.12688,95525.0,95523.0,0.01046868]
[1768662994544,0.12688,95525.0,95523.0,0.0103783]
[1768662995820,0.01046835,95526.0,95523.0,0.0103783]
[1768662996001,0.01046824,95527.0,95523.0,0.0103783]
[1768662996205,0.12688,95526.0,95524.0,0.01046857]
[1768662997340,0.12688,95526.0,95523.0,0.0103783]
[1768662997554,0.13734835,95526.0,95523.0,0.0103783]
[1768662998451,0.13734835,95526.0,95521.0,0.0104689]
[1768662998452,0.01046857,95524.0,95521.0,0.0104689]
[1768662998655,0.01046846,95525.0,95521.0,0.0104689]
[1768662998656,0.01046846,95525.0,95521.0,0.06281325]
[1768663000061,0.12688,95526.0,95523.0,0.01046868]
[1768663001464,0.12688,95526.0,95523.0,0.06281195]
[1768663001664,0.12688,95526.0,95524.0,0.05234286]
[1768663003379,0.12688,95526.0,95525.0,0.05234231]
[1768663003528,0.07111754,95526.0,95525.0,0.05234231]
[1768663003731,0.07111754,95526.0,95523.0,0.06281105]
[1768663003921,0.07111754,95526.0,95523.0,0.06281178]
[1768663004357,0.07111754,95526.0,95524.0,0.05234265]
[1768663005150,0.07111754,95526.0,95525.0,0.05234231]
[1768663005543,0.07111754,95526.0,95523.0,0.01046868]
[1768663006281,0.01046824,95527.0,95523.0,0.01046868]
[1768663006460,0.01046824,95527.0,95524.0,0.01046857]
[1768663006664,0.06281012,95526.0,95521.0,0.0104689]
[1768663006845,0.01046857,95524.0,95521.0,0.0104689]
[1768663007855,0.01046857,95524.0,95514.0,0.20939184]
[1768663007856,0.01046934,95517.0,95513.0,0.01046977]
[1768663008026,0.00014171,95528.0,95500.0,0.25257383]
[1768663008027,0.01047065,95505.0,95500.0,0.12688]
[1768663008228,0.01047065,95505.0,95497.0,0.01047153]
[1768663008229,0.01047098,95502.0,95497.0,0.01047153]
[1768663008372,0.01047098,95502.0,95498.0,1.20185791]
[1768663008623,0.01047098,95502.0,95499.0,0.01047131]
[1768663008830,0.01047065,95505.0,95501.0,0.01047109]
[1768663009048,0.01047043,95507.0,95502.0,0.01047098]
[1768663009296,0.01047054,95506.0,95503.0,0.01047087]
[1768663009871,0.01047054,95506.0,95501.0,0.06282647]
[1768663009872,0.01047076,95504.0,95501.0,0.01047109]
[1768663010685,0.01047054,95506.0,95502.0,0.01047098]
[1768663010872,0.01047054,95506.0,95501.0,0.052355]
[1768663011224,0.01047054,95506.0,95500.0,0.05235597]
[1768663011636,0.01047054,95506.0,95501.0,0.05235521]
[1768663011786,0.01047054,95506.0,95499.0,0.05235656]
[1768663011787,0.01047043,95507.0,95503.0,0.01047087]
[1768663012883,0.01047043,95507.0,95504.0,0.01047076]
[1768663013337,0.01047043,95507.0,95498.0,1.10521966]
[1768663013338,0.01047065,95505.0,95501.0,0.01047109]
[1768663013482,0.01008198,95505.0,95501.0,0.01047109]
[1768663013685,0.00969329,95505.0,95501.0,0.01047109]
[1768663016926,0.01047054,95506.0,95503.0,0.01047087]
[1768663017096,0.01047043,95507.0,95503.0,0.01047087]
[1768663018680,0.01047043,95507.0,95500.0,0.0104712]
[1768663018681,0.01047076,95504.0,95500.0,0.0104712]
[1768663018878,0.01047065,95505.0,95501.0,0.01047109]
[1768663019087,0.01047065,95505.0,95502.0,0.01047098]
[1768663019595,0.01047043,95507.0,95502.0,0.06282583]
[1768663019794,0.01047043,95507.0,95503.0,0.01047087]
[1768663020096,0.01047065,95505.0,95500.0,0.0104712]
[1768663020430,0.01008193,95505.0,95501.0,0.01047109]
[1768663020769,0.01008193,95505.0,95502.0,0.01047098]
[1768663020913,0.01047054,95506.0,95503.0,0.01047087]
[1768663021329,0.01047065,95505.0,95501.0,0.01047109]
[1768663021735,0.06282429,95505.0,95501.0,0.01047109]
[1768663021995,0.01047098,95502.0,95499.0,0.01047131]
[1768663022741,0.01047109,95501.0,95497.0,0.01047153]
[1768663022938,0.01047109,95501.0,95496.0,0.13751264]
[1768663023138,0.01047109,95501.0,95496.0,0.18987033]
[1768663023339,0.0104712,95500.0,95497.0,0.01047153]
[1768663023840,0.01047131,95499.0,95496.0,0.000161]
[1768663024042,0.01047131,95499.0,95496.0,7.064e-05]
[1768663024243,0.06282817,95499.0,95496.0,7.064e-05]
[1768663025103,0.06287539,95499.0,95496.0,7.064e-05]
[1768663025739,0.01051853,95499.0,95496.0,7.064e-05]
[1768663026222,0.05235711,95498.0,95496.0,7.064e-05]
[1768663026585,0.05235766,95497.0,95496.0,7.064e-05]
[1768663027020,0.01051853,95499.0,95496.0,7.064e-05]
[1768663027326,0.05235756,95498.0,95496.0,7.064e-05]
[1768663027876,0.0104723,95490.0,95487.0,0.000161]
[1768663028079,0.00695722,95490.0,95487.0,0.000161]
[1768663028555,0.01047252,95488.0,95474.0,0.12688]
[1768663028769,0.01047295,95484.0,95480.0,0.01047339]
[1768663028901,0.01047284,95485.0,95481.0,0.01047328]
[1768663029088,0.01047262,95487.0,95481.0,0.01047328]
[1768663029287,0.01047262,95487.0,95480.0,0.01047339]
[1768663029288,0.01047241,95489.0,95485.0,0.01047284]
[1768663029553,0.01047241,95489.0,95486.0,0.01047273]
[1768663029759,0.0104723,95490.0,95486.0,0.06283626]
[1768663029992,0.01047208,95492.0,95487.0,0.06283575]
[1768663030198,0.01047208,95492.0,95489.0,0.01047241]
[1768663031467,0.12688,95491.0,95489.0,0.01047241]
[1768663032491,0.01047208,95492.0,95489.0,0.01047241]
[1768663032696,0.13735208,95492.0,95489.0,0.01047241]
[1768663032872,0.01047208,95492.0,95489.0,0.01047241]
[1768663033472,0.13735208,95492.0,95489.0,0.01047241]
[1768663033682,0.01047219,95491.0,95488.0,0.01047252]
[1768663034405,0.01047197,95493.0,95489.0,0.01047241]
[1768663034607,0.12688,95492.0,95489.0,0.01047241]
[1768663035257,0.03303357,95493.0,95489.0,0.01047241]
[1768663035459,0.12688,95492.0,95489.0,0.01047241]
[1768663035796,0.03303357,95493.0,95489.0,0.01047241]
[1768663036315,0.12688,95492.0,95489.0,0.01047241]
[1768663036511,0.03303357,95493.0,95489.0,0.01047241]
[1768663036714,0.12688,95492.0,95489.0,0.01047241]
[1768663036916,0.08539344,95493.0,95489.0,0.01047241]
[1768663037167,0.0104723,95490.0,95487.0,0.01047262]